bitfinex-derivatives/quotes_ETHF0:USTF0_20250309
["timestamp","ask_amount","ask_price","bid_price","bid_amount"]
[1741532455921,2.35869,2120.2,2119.6,4.3058]
[1741532456124,0.94364,2119.9,2119.6,4.77754]
[1741532456924,0.94365,2119.8,2119.6,3.8338]
[1741532457124,7.8714,2120.3,2119.6,3.8338]
[1741532457324,0.94363,2119.9,2119.6,4.77752]
[1741532457522,0.94363,2119.9,2119.6,3.8338]
[1741532457733,3.2078,2120.3,2119.6,3.8338]
[1741532457928,0.94356,2120.0,2119.9,3.2078]
[1741532458621,0.94356,2120.0,2119.9,3.8604]
[1741532460428,0.94356,2120.0,2119.9,3.2078]
[1741532460734,0.94369,2119.7,2119.6,3.2078]
[1741532461432,0.6462,2119.9,2119.6,3.2078]
[1741532461634,0.94359,2120.0,2119.6,3.2078]
[1741532461835,0.94361,2119.9,2119.7,0.6481]
[1741532462036,0.94361,2119.9,2119.8,1.2115]
[1741532462433,4.1789,2120.3,2119.8,1.2115]
[1741532462636,0.94361,2119.9,2119.8,1.2115]
[1741532463138,7.3867,2120.3,2119.8,1.2115]
[1741532463639,0.94361,2119.9,2119.8,1.2115]
[1741532463843,0.94358,2120.0,2119.8,1.2115]
[1741532464143,7.3867,2120.3,2119.8,1.2115]
[1741532464144,0.94361,2119.9,2119.8,1.2115]
[1741532465034,7.3867,2120.3,2119.8,1.2115]
[1741532465035,0.94358,2120.0,2119.8,1.2115]
[1741532465236,4.1789,2120.3,2119.9,3.2078]
[1741532465832,0.94353,2120.1,2119.9,3.2078]
[1741532466034,0.94356,2120.0,2119.9,3.2078]
[1741532466940,4.1789,2120.3,2119.9,3.2078]
[1741532467141,0.94356,2120.0,2119.9,3.2078]
[1741532467939,9.74536,2120.3,2119.8,1.2115]
[1741532468136,7.3867,2120.3,2119.6,3.2078]
[1741532468335,0.94365,2119.8,2119.7,0.6545]
[1741532469237,5.0827,2120.3,2119.7,0.6545]
[1741532469435,0.94357,2120.0,2119.9,3.2078]
[1741532471845,0.94356,2120.1,2119.9,3.2078]
[1741532472041,0.94356,2120.1,2120.0,0.6386]
[1741532472241,0.94349,2120.2,2120.0,0.6386]
[1741532472442,0.94349,2120.2,2120.1,0.6233]
[1741532472638,1.8599,2120.5,2120.1,0.6233]
[1741532472843,0.6392,2120.5,2120.3,3.2078]
[1741532473150,1.1963,2120.8,2120.3,3.2078]
[1741532473339,0.94325,2120.7,2120.6,3.2078]
[1741532473849,0.94323,2120.8,2120.6,3.2078]
[1741532474445,0.01651,2121.0,2120.6,3.2078]
[1741532474641,0.94325,2120.7,2120.6,3.2078]
[1741532474849,0.94329,2120.6,2120.5,0.6265]
[1741532475141,2.3744,2121.0,2120.3,3.2078]
[1741532475342,0.94338,2120.4,2120.3,3.2078]
[1741532478658,1.8845,2120.7,2120.3,3.2078]
[1741532478861,0.94335,2120.5,2120.3,3.2078]
[1741532479362,0.94337,2120.5,2120.3,3.2078]
[1741532480061,0.94338,2120.4,2120.3,3.2078]
[1741532480655,1.8845,2120.7,2120.3,3.2078]
[1741532480960,0.94335,2120.5,2120.3,3.2078]
[1741532481158,0.94337,2120.5,2120.3,3.2078]
[1741532481359,1.8845,2120.7,2120.3,3.2078]
[1741532481663,0.94329,2120.6,2120.3,3.2078]
[1741532482163,1.8845,2120.7,2120.3,3.2078]
[1741532482455,0.6193,2120.7,2120.3,3.2078]
[1741532482655,1.56256,2120.7,2120.3,4.1512]
[1741532482860,3.2078,2120.8,2120.3,3.2078]
[1741532483057,4.15103,2120.8,2120.4,0.94336]
[1741532483256,0.94325,2120.7,2120.3,4.15121]
[1741532483456,4.15102,2120.8,2120.4,41.74336]
[1741532483656,4.15102,2120.8,2120.4,0.94336]
[1741532483857,0.01651,2121.0,2120.6,3.2078]
[1741532484052,0.94316,2120.9,2120.7,0.6525]
[1741532484259,0.95965,2121.0,2120.7,0.6525]
[1741532484457,0.94321,2120.8,2120.7,0.6525]
[1741532484657,0.94321,2120.8,2120.6,3.2078]
[1741532484658,0.94325,2120.7,2120.6,3.2078]
[1741532484854,0.94325,2120.7,2120.5,0.5957]
[1741532485058,2.301,2120.9,2120.4,0.6197]
[1741532485660,3.2078,2120.8,2120.3,3.2078]
[1741532485862,0.94338,2120.4,2120.3,3.2078]
[1741532486164,1.2231,2120.7,2120.2,0.0070865]
[1741532486165,0.94343,2120.3,2120.2,0.0070865]
[1741532486367,2.16653,2120.3,2120.2,0.0070865]
[1741532487973,6.16653,2120.3,2120.2,0.0070865]
[1741532488469,2.16653,2120.3,2120.2,0.0070865]
[1741532489265,1.55683,2120.3,2120.2,0.0070865]
[1741532489663,0.6134,2120.3,2120.2,0.0070865]
[1741532489860,3.24437,2120.5,2120.2,0.0070865]
[1741532490074,2.301,2120.5,2120.2,0.6176865]
[1741532490370,3.24436,2120.5,2120.3,3.2078]
[1741532490562,0.94336,2120.5,2120.3,3.2078]
[1741532490963,1.2807,2120.7,2120.3,4.15119]
[1741532490964,1.58027,2120.7,2120.3,4.15119]
[1741532491164,5.5088,2120.8,2120.3,3.2078]
[1741532491362,3.24423,2120.8,2120.4,0.94338]
[1741532491869,0.94325,2120.7,2120.3,4.15121]
[1741532492071,0.94317,2120.9,2120.6,3.2078]
[1741532492268,0.01651,2121.0,2120.7,1.2594]
[1741532492574,0.95964,2121.0,2120.7,1.2594]
[1741532492869,0.01651,2121.0,2120.7,1.2594]
[1741532493262,0.01651,2121.0,2120.7,2.20261]
[1741532493469,0.01651,2121.0,2120.7,1.2594]
[1741532493678,0.95964,2121.0,2120.7,1.2594]
[1741532494568,0.01651,2121.0,2120.7,2.20262]
[1741532494771,0.01651,2121.0,2120.7,1.2594]
[1741532495371,0.94321,2120.8,2120.7,1.2594]
[1741532495567,0.9432,2120.9,2120.7,1.2594]
[1741532496261,0.95964,2121.0,2120.7,1.2594]
[1741532496469,0.01651,2121.0,2120.7,1.2594]
[1741532496769,0.94317,2120.9,2120.7,1.2594]
[1741532496965,0.95964,2121.0,2120.7,1.2594]
[1741532497162,0.01651,2121.0,2120.6,3.2078]
[1741532497370,0.94325,2120.7,2120.6,3.2078]
[1741532497771,1.87,2120.9,2120.6,3.2078]
[1741532498074,0.94325,2120.7,2120.6,3.2078]
[1741532500671,1.87,2120.9,2120.6,3.2078]
[1741532500873,0.94323,2120.8,2120.6,3.2078]
[1741532501175,0.94323,2120.8,2120.7,0.636]
[1741532501377,0.94317,2120.9,2120.7,0.636]
[1741532501675,0.94317,2120.9,2120.7,1.2839]
[1741532502067,0.95964,2121.0,2120.7,1.2839]
[1741532502579,0.94321,2120.8,2120.7,1.2839]
[1741532503468,0.01651,2121.0,2120.7,1.2839]
[1741532503778,0.94321,2120.8,2120.7,1.2839]
[1741532504481,0.01651,2121.0,2120.7,1.2839]
[1741532504681,0.94321,2120.8,2120.7,1.2839]
[1741532505069,0.94325,2120.7,2120.6,3.2078]
[1741532509683,0.94324,2120.8,2120.6,3.2078]
[1741532509981,0.01651,2121.0,2120.6,3.2078]
[1741532510481,0.94322,2120.8,2120.6,3.2078]
[1741532510876,0.01651,2121.0,2120.6,3.2078]
[1741532511074,0.94319,2120.9,2120.6,3.2078]
[1741532511474,0.94323,2120.8,2120.6,3.2078]
[1741532511679,0.94319,2120.9,2120.6,3.2078]
[1741532511981,0.01651,2121.0,2120.6,3.2078]
[1741532512184,0.95964,2121.0,2120.6,4.15105]
[1741532512378,0.94317,2120.9,2120.6,4.15106]
[1741532512579,0.94317,2120.9,2120.6,3.2078]
[1741532512778,0.95965,2121.0,2120.6,4.15107]
[1741532513177,0.01651,2121.0,2120.6,3.2078]
[1741532513382,0.01651,2121.0,2120.7,0.94322]
[1741532513679,0.01651,2121.0,2120.8,0.6073]
[1741532513985,0.01651,2121.0,2120.9,3.2078]
[1741532514186,0.95963,2121.0,2120.9,3.2078]
[1741532514382,0.01651,2121.0,2120.9,3.2078]
[1741532514786,0.95963,2121.0,2120.9,3.2078]
[1741532515089,0.94316,2120.9,2120.8,1.2151]
[1741532516287,0.95966,2121.0,2120.8,1.2151]
[1741532516787,0.94316,2120.9,2120.8,1.2151]
[1741532516979,0.95965,2121.0,2120.8,1.2151]
[1741532517180,0.94316,2120.9,2120.8,1.2151]
[1741532517374,0.01651,2121.0,2120.8,1.2151]
[1741532517579,0.94316,2120.9,2120.8,1.2151]
[1741532518389,0.01651,2121.0,2120.8,1.2151]
[1741532518587,0.94316,2120.9,2120.8,1.2151]
[1741532519183,0.01651,2121.0,2120.8,1.2151]
[1741532519383,0.94316,2120.9,2120.8,1.2151]
[1741532519583,0.94316,2120.9,2120.8,0.6073]
[1741532519992,0.01651,2121.0,2120.8,0.6073]
[1741532520486,0.94316,2120.9,2120.8,0.6073]
[1741532521095,0.01651,2121.0,2120.8,1.55047]
[1741532521294,0.01651,2121.0,2120.9,4.15096]
[1741532521489,0.01651,2121.0,2120.9,4.78436]
[1741532521689,0.01651,2121.0,2120.9,3.8412]
[1741532521890,0.95963,2121.0,2120.9,3.8412]
[1741532525995,0.94316,2120.9,2120.8,0.6073]
[1741532526195,1.55056,2120.9,2120.8,0.6073]
[1741532528590,0.94316,2120.9,2120.8,0.6073]
[1741532532508,0.94325,2120.7,2120.6,0.6376]
[1741532532709,0.94325,2120.7,2120.6,1.2936]
[1741532533099,0.94324,2120.8,2120.6,1.2936]
[1741532533301,0.94325,2120.7,2120.6,1.2936]
[1741532533908,0.01651,2121.0,2120.6,1.2936]
[1741532534111,0.01651,2121.0,2120.8,4.15098]
[1741532534303,0.01651,2121.0,2120.9,0.6042]
[1741532534804,0.95963,2121.0,2120.9,0.6042]
[1741532535010,0.94325,2120.8,2120.6,0.656]
[1741532535411,0.94319,2120.9,2120.7,0.5954]
[1741532535708,0.95965,2121.0,2120.7,0.5954]
[1741532535910,0.94321,2120.8,2120.7,0.5954]
[1741532536299,0.01651,2121.0,2120.7,0.5954]
[1741532536506,0.9432,2120.9,2120.7,0.5954]
[1741532537205,0.95964,2121.0,2120.7,0.5954]
[1741532537401,0.01651,2121.0,2120.7,0.5954]
[1741532537700,0.94321,2120.8,2120.7,0.5954]
[1741532538906,0.01651,2121.0,2120.7,1.53865]
[1741532539112,0.01651,2121.0,2120.7,1.2418]
[1741532539113,0.94318,2120.9,2120.7,1.2418]
[1741532539711,0.94317,2120.9,2120.7,1.2418]
[1741532539914,0.01651,2121.0,2120.7,1.2418]
[1741532540115,0.94319,2120.9,2120.7,1.2418]
[1741532540315,0.95964,2121.0,2120.7,1.2418]
[1741532540521,0.95964,2121.0,2120.7,2.18504]
[1741532540819,0.95964,2121.0,2120.7,1.2418]
[1741532541113,0.94316,2120.9,2120.7,1.2418]
[1741532542215,0.94321,2120.8,2120.7,0.5954]
[1741532546021,0.01651,2121.0,2120.8,0.9432]
[1741532546219,0.01651,2121.0,2120.8,4.15099]
[1741532546424,0.01651,2121.0,2120.8,3.8067]
[1741532547127,0.95963,2121.0,2120.8,3.8067]
[1741532547719,0.01651,2121.0,2120.8,3.8067]
[1741532547918,0.95963,2121.0,2120.8,3.8067]
[1741532548220,0.01651,2121.0,2120.8,4.74989]
[1741532549623,0.01651,2121.0,2120.8,3.8067]
[1741532550229,0.01651,2121.0,2120.8,4.74987]
[1741532551718,3.2078,2122.1,2120.8,6.7917]
[1741532552030,1.57851,2122.0,2121.6,3.2078]
[1741532552227,0.94275,2121.9,2121.7,0.6409]
[1741532552425,0.6358,2122.0,2121.7,0.6409]
[1741532552621,0.94276,2121.8,2121.7,0.6409]
[1741532553025,0.6358,2122.0,2121.6,0.0070693]
[1741532553026,0.94281,2121.7,2121.6,0.0070693]
[1741532553325,1.54881,2121.7,2121.6,0.0070693]
[1741532553827,2.35724,2121.5,2121.2,3.2078]
[1741532554022,0.94315,2121.0,2120.9,3.2078]
[1741532556929,6.293,2121.0,2120.1,3.2078]
[1741532557121,0.94345,2120.3,2120.1,3.8183]
[1741532557322,5.56582,2120.8,2120.1,3.8183]
[1741532557630,0.94342,2120.4,2120.1,3.8183]
[1741532558133,0.5981,2120.8,2120.1,3.8183]
[1741532558333,0.94333,2120.6,2120.4,3.2078]
[1741532558535,0.94333,2120.6,2120.5,0.6105]
[1741532559228,0.94334,2120.5,2120.4,3.2078]
[1741532559429,0.94343,2120.3,2120.2,1.2216]
[1741532559629,0.94343,2120.3,2120.2,0.6105]
[1741532559830,0.94347,2120.2,2120.1,3.2078]
[1741532560028,0.94347,2120.2,2120.1,3.8181]
[1741532560233,0.94347,2120.2,2120.1,3.2078]
[1741532561330,0.94352,2120.1,2120.0,0.0070693]
[1741532561528,0.94365,2119.8,2119.7,3.2078]
[1741532561831,0.5964,2120.1,2119.7,3.2078]
[1741532562035,0.5964,2120.1,2119.5,0.6103]
[1741532562335,0.94374,2119.6,2119.5,0.6103]
[1741532563230,0.94383,2119.4,2119.3,0.0070693]
[1741532564323,3.23683,2119.4,2119.3,0.0070693]
[1741532564523,0.94414,2118.8,2118.5,3.2078]
[1741532564730,0.94415,2118.7,2118.5,3.2078]
[1741532565125,0.94418,2118.6,2118.5,3.2078]
[1741532565331,2.8931,2119.0,2118.3,0.6539]
[1741532565528,0.94426,2118.5,2118.3,0.6539]
[1741532565730,3.5122,2119.0,2118.4,0.0070693]
[1741532565731,0.94415,2118.7,2118.4,0.0070693]
[1741532565933,0.94418,2118.7,2118.4,0.0070693]
[1741532566132,0.94419,2118.6,2118.4,0.0070693]
[1741532566433,0.94423,2118.5,2118.4,0.0070693]
[1741532566834,0.9442,2118.6,2118.4,0.0070693]
[1741532567036,0.0070693,2118.9,2118.4,0.0070693]
[1741532567239,3.2078,2118.8,2118.4,0.0070693]
[1741532567530,0.94422,2118.6,2118.4,0.0070693]
[1741532567731,2.293,2118.6,2118.4,0.0070693]
[1741532567936,0.94423,2118.5,2118.4,0.0070693]
[1741532571240,3.23721,2118.6,2118.4,0.0070693]
[1741532571441,0.94423,2118.5,2118.4,0.0070693]
[1741532571735,5.5008,2118.8,2118.4,0.0070693]
[1741532571937,5.5008,2118.8,2118.5,3.2078]
[1741532572132,3.23712,2118.8,2118.5,3.2078]
[1741532573044,3.23712,2118.8,2118.5,3.8175]
[1741532574441,2.293,2118.8,2118.5,3.8175]
[1741532574641,3.2371,2118.8,2118.5,3.8175]
[1741532575145,2.293,2118.8,2118.5,3.8175]
[1741532575342,3.23714,2118.8,2118.5,3.8175]
[1741532576441,0.0070693,2118.9,2118.5,3.8175]
[1741532576745,0.0070693,2118.9,2118.8,4.1519]
[1741532576945,3.23684,2119.4,2119.0,0.944]
[1741532577338,0.94389,2119.3,2119.1,3.2078]
[1741532578043,3.2439193,2119.4,2119.1,3.2078]
[1741532578641,0.0070693,2119.4,2119.1,3.2078]
[1741532578841,0.0070693,2119.4,2119.2,1.58228]
[1741532579543,0.0070693,2119.4,2119.3,0.94387]
[1741532579943,0.0070693,2119.4,2119.3,1.53797]
[1741532580344,0.0070693,2119.4,2119.3,0.5941]
[1741532580560,0.9508993,2119.4,2119.3,0.5941]
[1741532580846,0.94392,2119.2,2119.1,3.2078]
[1741532581448,0.94396,2119.1,2118.9,1.2382]
[1741532581648,0.0070693,2119.4,2118.8,3.2078]
[1741532581850,3.2078,2119.3,2118.8,3.2078]
[1741532582150,0.0070693,2119.4,2118.8,3.2078]
[1741532582351,0.0070693,2119.4,2119.3,0.94387]
[1741532582553,0.6545,2119.9,2119.6,0.94371]
[1741532582753,2.292,2120.0,2119.5,3.2078]
[1741532582949,0.94352,2120.1,2119.5,3.2078]
[1741532583145,0.94352,2120.1,2119.3,1.2261]
[1741532583146,0.94352,2120.1,2119.8,3.2078]
[1741532583339,0.94349,2120.2,2119.9,0.6244]
[1741532583545,0.94354,2120.1,2119.9,0.6244]
[1741532583949,0.0070693,2120.3,2119.9,0.6244]
[1741532584148,0.0070693,2120.3,2120.1,3.2078]
[1741532584350,0.6545,2120.9,2120.1,3.2078]
[1741532584546,2.292,2121.1,2120.5,0.94334]
[1741532584850,0.94321,2120.8,2120.6,0.6017]
[1741532585046,0.94318,2120.9,2120.6,0.6017]
[1741532585246,0.94313,2121.0,2120.6,1.54498]
[1741532585447,0.94317,2120.9,2120.6,0.6017]
[1741532586054,0.95015196,2121.0,2120.6,0.6017]
[1741532586355,0.94318,2120.9,2120.6,0.6017]
[1741532587647,0.00701196,2121.0,2120.7,3.2078]
[1741532587953,0.94321,2120.8,2120.7,3.2078]
[1741532588156,0.00701196,2121.0,2120.7,3.2078]
[1741532588357,0.00701196,2121.0,2120.7,4.15102]
[1741532588653,0.00701196,2121.0,2120.7,3.2078]
[1741532588855,0.00701196,2121.0,2120.7,4.15103]
[1741532589046,0.00701196,2121.0,2120.7,3.2078]
[1741532589445,0.95014196,2121.0,2120.7,3.2078]
[1741532590047,0.00701196,2121.0,2120.9,0.94316]
[1741532590252,0.00701196,2121.0,2120.8,0.94318]
[1741532590554,0.94318,2120.9,2120.7,3.2078]
[1741532590750,0.94319,2120.9,2120.7,3.2078]
[1741532590945,0.94321,2120.8,2120.7,3.2078]
[1741532591150,0.00701196,2121.0,2120.7,3.2078]
[1741532591352,0.94321,2120.8,2120.7,3.2078]
[1741532591859,0.94318,2120.9,2120.7,3.2078]
[1741532592057,0.94316,2120.9,2120.7,3.2078]
[1741532592449,0.00701196,2121.0,2120.7,3.2078]
[1741532592450,0.94321,2120.8,2120.7,3.2078]
[1741532593553,3.2078,2120.8,2120.4,3.2078]
[1741532593855,3.2078,2120.8,2120.2,1.2553]
[1741532594055,0.94334,2120.5,2120.2,1.2553]
[1741532594255,0.94332,2120.6,2120.2,1.2553]
[1741532594454,0.94335,2120.5,2120.2,1.2553]
[1741532594756,0.94328,2120.7,2120.2,1.2553]
[1741532594960,0.94318,2120.9,2120.4,3.2078]
[1741532595147,0.00701196,2121.0,2120.4,3.2078]
[1741532595657,0.94339,2120.4,2120.2,1.2553]
[1741532595959,3.2078,2120.8,2120.2,1.2553]
[1741532596148,0.94339,2120.4,2120.2,1.2553]
[1741532596356,3.2078,2120.8,2120.2,1.2553]
[1741532596554,0.94341,2120.4,2120.2,1.2553]
[1741532596756,0.94343,2120.3,2120.1,3.2078]
[1741532597056,0.94343,2120.3,2119.8,19.2640693]
[1741532597057,2.29,2120.6,2119.9,0.9436]
[1741532597252,2.29,2120.6,2120.1,3.2078]
[1741532597458,3.23331,2120.6,2120.2,0.6276]
[1741532597761,3.23332,2120.6,2120.3,0.6007]
[1741532597951,2.29,2120.6,2120.3,0.6007]
[1741532598458,3.23333,2120.6,2120.3,0.6007]
[1741532599257,0.94334,2120.5,2120.4,3.2078]
[1741532599958,2.8955,2120.9,2120.4,3.2078]
[1741532600255,0.94325,2120.7,2120.4,3.2078]
[1741532600662,0.00701196,2121.0,2120.4,3.2078]
[1741532601059,0.94332,2120.6,2120.4,3.2078]
[1741532601552,0.94334,2120.5,2120.4,3.2078]
[1741532601753,1.57924,2120.5,2120.4,3.2078]
[1741532603565,0.94343,2120.3,2120.2,1.0879]
[1741532603863,0.94343,2120.3,2120.2,1.1175]
[1741532604961,0.94341,2120.4,2120.2,1.1175]
[1741532605367,0.6359,2120.5,2120.2,1.1175]
[1741532605368,0.94343,2120.3,2120.2,1.1175]
[1741532606057,0.6359,2120.5,2120.2,1.1175]
[1741532606259,0.94331,2120.6,2120.2,2.06096]
[1741532606459,0.94331,2120.6,2120.3,0.6342]
[1741532606665,2.289,2120.7,2120.3,0.6342]
[1741532606863,0.94338,2120.4,2120.3,0.6342]
[1741532607263,2.289,2120.7,2120.4,0.0581]
[1741532607466,0.94334,2120.5,2120.4,0.0581]
[1741532608169,0.94333,2120.6,2120.4,0.0581]
[1741532608367,0.94329,2120.6,2120.4,0.0581]
[1741532608567,0.94334,2120.5,2120.4,0.0581]
[1741532610365,2.289,2120.7,2120.4,0.0581]
[1741532610576,0.94334,2120.5,2120.4,0.0581]
[1741532612384,4.15114,2120.5,2120.4,0.0581]
[1741532614388,0.94338,2120.4,2120.3,1.7825]
[1741532614580,0.94338,2120.4,2120.2,1.1175]
[1741532614581,1.9344,2120.4,2120.2,1.1175]
[1741532614783,0.94343,2120.3,2120.2,1.1175]
[1741532614983,3.23143,2120.3,2120.2,1.1175]
[1741532619189,2.288,2120.3,2120.0,1.9908]
[1741532619384,0.94352,2120.1,2120.0,1.9908]
[1741532619785,0.94369,2119.7,2119.6,0.6156]
[1741532620089,0.94378,2119.5,2119.4,3.2078]
[1741532620785,3.01122,2119.8,2119.2,1.242]
[1741532620985,0.94387,2119.3,2119.2,1.2490693]
[1741532621290,0.94387,2119.3,2119.2,2.1714693]
[1741532621486,5.5028693,2119.7,2119.2,2.1714693]
[1741532621688,0.94386,2119.4,2119.2,2.1714693]
[1741532621891,0.94387,2119.3,2119.2,2.1714693]
[1741532622692,5.5028693,2119.7,2119.2,2.1714693]
[1741532622992,0.94387,2119.3,2119.2,2.1714693]
[1741532623396,0.94385,2119.4,2119.2,2.1714693]
[1741532623694,5.5028693,2119.7,2119.2,2.1714693]
[1741532623884,0.94385,2119.4,2119.2,2.1714693]
[1741532624692,0.94387,2119.3,2119.2,2.1714693]
[1741532625583,5.5028693,2119.7,2119.2,2.1714693]
[1741532625784,0.94381,2119.5,2119.2,2.1714693]
[1741532626383,2.2950693,2119.7,2119.2,2.1714693]
[1741532626588,3.23076,2119.6,2119.2,3.1153693]
[1741532626786,0.0070693,2119.7,2119.2,2.8085693]
[1741532626992,0.0070693,2119.7,2119.6,4.15154]
[1741532627292,0.94346,2120.3,2119.8,0.94363]
[1741532627497,0.94347,2120.2,2119.9,3.8465]
[1741532627689,0.94352,2120.2,2119.9,3.8465]
[1741532627889,2.287,2120.4,2119.9,3.8465]
[1741532628092,0.94356,2120.0,2119.9,3.2078]
[1741532628487,2.29401196,2120.4,2119.6,41.443]
[1741532628692,0.94365,2119.8,2119.6,0.643]
[1741532629096,0.94362,2119.9,2119.6,0.643]
[1741532629698,0.94359,2120.0,2119.6,1.58674]
[1741532629995,0.94355,2120.1,2119.8,3.2078]
[1741532630191,0.94357,2120.0,2119.8,3.2078]
[1741532630495,0.94357,2120.0,2119.9,0.6216]
[1741532631898,0.6455,2120.1,2119.8,3.2078]
[1741532631899,0.94361,2119.9,2119.8,3.2078]
[1741532632095,0.6308,2120.0,2119.6,0.643]
[1741532632302,0.94369,2119.7,2119.6,0.643]
[1741532632495,0.94369,2119.7,2119.2,0.9294693]
[1741532632496,0.94383,2119.4,2119.3,0.6317]
[1741532632798,0.94387,2119.3,2119.2,0.9294693]
[1741532634198,10.43867,2119.3,2119.2,0.31490375]
[1741532634795,6.43867,2119.3,2119.2,0.31490375]
[1741532634991,10.43867,2119.3,2119.2,3.75e-06]
[1741532635398,6.43867,2119.3,2119.2,3.75e-06]
[1741532638396,10.43867,2119.3,2119.2,3.75e-06]
[1741532640304,6.43867,2119.3,2119.2,3.75e-06]
[1741532640605,0.94387,2119.3,2119.2,3.75e-06]
[1741532640805,6.43867,2119.3,2119.2,3.75e-06]
[1741532642104,0.94392,2119.2,2119.1,0.31131375]
[1741532642304,0.94396,2119.1,2119.0,3.05e-06]
[1741532642505,1.56386,2119.1,2119.0,3.05e-06]
[1741532642700,5.56386,2119.1,2119.0,3.05e-06]
[1741532643404,0.94418,2118.6,2118.5,3.2078]
[1741532643610,3.23018,2118.6,2118.5,3.2078]
[1741532644207,4.77168,2119.1,2118.6,0.94414]
[1741532644405,0.94394,2119.2,2118.8,3.2078]
[1741532644608,0.0070693,2119.3,2118.9,1.255]
[1741532644811,0.94393,2119.2,2118.9,42.055]
[1741532645009,0.0070693,2119.3,2118.9,42.055]
[1741532645204,0.0070693,2119.3,2118.9,42.99904]
[1741532645409,0.0070693,2119.3,2119.1,3.2078]
[1741532645610,0.9509493,2119.3,2119.1,3.2078]
[1741532645806,0.94392,2119.2,2119.1,3.2078]
[1741532646012,0.0070693,2119.3,2118.9,1.255]
[1741532646210,0.94399,2119.1,2118.9,1.255]
[1741532646411,2.2930693,2119.3,2118.9,1.255]
[1741532646611,0.94401,2119.0,2118.9,1.255]
[1741532646812,2.2930693,2119.3,2118.9,1.255]
[1741532647217,0.94401,2119.0,2118.9,1.255]
[1741532647413,2.2930693,2119.3,2118.8,3.2078]
[1741532647414,0.94405,2118.9,2118.8,3.2078]
[1741532647619,0.94414,2118.7,2118.6,0.0070693]
[1741532647815,3.8222,2119.1,2118.6,0.0070693]
[1741532648113,0.94396,2119.2,2118.7,4.15193]
[1741532648318,0.9509593,2119.3,2119.0,3.2078]
[1741532648519,0.9509593,2119.3,2119.1,1.2328]
[1741532649714,0.0070693,2119.3,2119.1,1.2328]
[1741532650220,0.94392,2119.2,2119.1,1.2328]
[1741532650717,0.94392,2119.2,2119.1,0.5984]
[1741532650918,0.94396,2119.1,2119.0,3.2078]
[1741532651122,0.9441,2118.8,2118.7,1.2592]
[1741532651821,0.9441,2118.8,2118.6,0.0070693]
[1741532651822,0.94414,2118.7,2118.6,0.0070693]
[1741532652519,4.94414,2118.7,2118.6,0.0070693]
[1741532653019,5.55704,2118.7,2118.6,0.0070693]
[1741532653219,1.55704,2118.7,2118.6,0.0070693]
[1741532653619,0.94414,2118.7,2118.6,0.0070693]
[1741532655513,4.94414,2118.7,2118.6,0.0070693]
[1741532655716,0.94414,2118.7,2118.6,0.0070693]
[1741532662214,2.285,2118.8,2118.6,0.0070693]
[1741532662419,0.94403,2119.0,2118.6,0.0070693]
[1741532662926,2.285,2119.1,2118.6,0.0070693]
[1741532663225,2.285,2119.1,2118.8,3.2078]
[1741532663424,2.285,2119.1,2118.9,1.2005]
[1741532663826,3.22897,2119.1,2118.9,1.2005]
[1741532664721,0.94401,2119.0,2118.9,1.2005]
[1741532666722,0.94401,2119.0,2118.6,0.0070693]
[1741532666723,0.94414,2118.7,2118.6,0.0070693]
[1741532666928,0.94414,2118.7,2118.6,0.6357693]
[1741532667430,0.94413,2118.8,2118.6,0.6357693]
[1741532667726,0.94408,2118.9,2118.6,1.2794693]
[1741532668115,2.285,2119.1,2118.8,3.2078]
[1741532668530,0.94405,2118.9,2118.8,3.2078]
[1741532668827,0.9441,2118.8,2118.6,1.2794693]
[1741532669129,0.94401,2119.0,2118.6,1.2794693]
[1741532669321,0.94411,2118.8,2118.6,1.2794693]
[1741532669626,0.94414,2118.7,2118.6,1.2794693]
[1741532670329,0.94414,2118.7,2118.6,0.6357693]
[1741532671726,3.22814,2118.7,2118.6,0.6357693]
[1741532671926,3.22814,2118.7,2118.6,0.0070693]
[1741532674928,7.22814,2118.7,2118.6,9.3e-06]
[1741532676129,0.94454,2117.8,2117.7,0.6017]
[1741532676437,0.94463,2117.6,2117.5,0.6564]
[1741532677122,2.284,2117.9,2117.5,0.6564]
[1741532677327,0.94463,2117.6,2117.5,0.6564]
[1741532677529,0.0070693,2117.8,2117.5,0.6564]
[1741532677829,0.94463,2117.6,2117.5,0.6564]
[1741532679331,0.94462,2117.7,2117.5,0.6564]
[1741532679534,0.9516293,2117.8,2117.5,0.6564]
[1741532679732,0.9516293,2117.8,2117.6,3.2078]
[1741532680130,0.94459,2117.7,2117.6,3.2078]
[1741532680329,0.0070693,2117.8,2117.6,3.2078]
[1741532680535,0.94459,2117.7,2117.6,3.2078]
[1741532680932,0.0070693,2117.8,2117.3,3.2148693]
[1741532681233,0.9447,2117.5,2117.3,3.2148693]
[1741532681433,3.2148693,2117.8,2117.3,3.2148693]
[1741532681633,0.94472,2117.5,2117.3,3.2148693]
[1741532681839,0.94472,2117.4,2117.3,3.2148693]
[1741532683130,0.94472,2117.4,2117.3,0.0070693]
[1741532684434,2.284,2117.5,2117.3,0.0070693]
[1741532684637,0.94472,2117.4,2117.3,0.0070693]
[1741532684939,2.284,2117.5,2117.3,3.2148693]
[1741532685638,3.22868,2117.5,2117.3,3.8074693]
[1741532685939,0.94472,2117.4,2117.3,3.8074693]
[1741532687138,0.94472,2117.4,2117.3,3.2148693]
[1741532688634,0.94472,2117.4,2117.3,0.0070693]
[1741532689940,2.284,2117.5,2117.3,0.0070693]
[1741532690149,2.284,2117.5,2117.3,3.2148693]
[1741532690440,3.2287,2117.5,2117.3,3.2148693]